bitfinex-derivatives/quotes_ETHF0:USTF0_20230701
["timestamp","ask_amount","ask_price","bid_price","bid_amount"]
[1688250324109,0.51159266,1926.8,1926.7,4.99344]
[1688250324312,0.51159266,1926.8,1926.7,17.4533561]
[1688250330115,0.51159266,1926.8,1926.7,4.99344]
[1688250332517,0.51159266,1926.8,1926.7,4.996651]
[1688250344132,0.82301266,1926.8,1926.7,4.996651]
[1688250352936,0.51159266,1926.8,1926.7,4.996651]
[1688250356143,0.51159266,1926.8,1926.7,17.45634053]
[1688250377248,0.82301266,1926.8,1926.7,17.45634053]
[1688250378755,0.51159266,1926.8,1926.7,17.45634053]
[1688250387757,0.82301266,1926.8,1926.7,17.45634053]
[1688250398974,0.51159266,1926.8,1926.7,17.45634053]
[1688250405272,0.44435751,1926.8,1926.7,17.45634053]
[1688250407775,0.28095595,1926.8,1926.7,17.45634053]
[1688250407975,0.49877568,1926.8,1926.7,17.45634053]
[1688250408279,5.273,1927.0,1926.7,23.3070235]
[1688250408475,5.273,1927.0,1926.9,7.8898]
[1688250408671,5.273,1927.0,1926.9,20.65989676]
[1688250408979,5.273,1927.0,1926.9,8.2012]
[1688250409680,5.273,1927.0,1926.9,8.20439297]
[1688250412881,5.76021961,1927.0,1926.9,8.20439297]
[1688250413971,0.31133,1927.5,1926.9,35.60398366]
[1688250414283,10.0748,1927.4,1927.3,0.31133]
[1688250414585,4.8652,1927.4,1927.3,4.99333]
[1688250414781,0.93398,1927.6,1927.3,4.99333]
[1688250415077,0.31126,1927.9,1927.8,0.31125]
[1688250415271,5.52086,1927.9,1927.8,4.99325]
[1688250415471,9.01537635,1927.9,1927.8,4.95325]
[1688250415676,8.72866,1927.9,1927.8,4.95325]
[1688250416078,9.01537635,1927.9,1927.8,4.95325]
[1688250416383,5.52086,1927.9,1927.8,4.95325]
[1688250416584,5.52086,1927.9,1927.8,4.95636188]
[1688250417577,5.80757635,1927.9,1927.8,4.95636188]
[1688250417976,9.01537635,1927.9,1927.8,4.64511188]
[1688250418179,9.01537635,1927.9,1927.8,0.00311188]
[1688250419888,9.01537635,1927.9,1927.8,0.31436188]
[1688250421586,9.67999454,1927.9,1927.8,0.31436188]
[1688250423591,9.67999454,1927.9,1927.8,0.00311188]
[1688250424887,9.67999454,1927.9,1927.8,0.31436188]
[1688250427791,9.67999454,1927.9,1927.8,0.00311188]
[1688250428987,9.67999454,1927.9,1927.8,0.31437188]
[1688250431094,9.67999454,1927.9,1927.8,0.00311188]
[1688250434194,0.56748412,1927.8,1927.3,4.682]
[1688250434402,7.8898,1927.4,1927.1,5.61609]
[1688250434589,3.2078,1927.2,1927.1,4.682]
[1688250434895,4.17849325,1927.2,1927.1,5.40657536]
[1688250435791,8.86049325,1927.2,1927.1,0.41320536]
[1688250435990,8.86049325,1927.2,1927.0,0.00778351]
[1688250436197,1.16557047,1927.1,1927.0,0.00778351]
[1688250436389,1.43227915,1927.1,1927.0,0.00778351]
[1688250437998,1.43227915,1927.1,1927.0,0.42974136]
[1688250438197,1.43227915,1927.1,1927.0,0.00778351]
[1688250442213,6.10027915,1927.1,1927.0,0.00778351]
[1688250442705,6.10027915,1927.1,1927.0,0.01084777]
[1688250447408,1.1455628,1927.1,1927.0,5.00422777]
[1688250447702,0.57807868,1927.1,1927.0,5.00422777]
[1688250452114,0.86479503,1927.1,1927.0,5.00422777]
[1688250456808,0.57807868,1927.1,1927.0,5.00422777]
[1688250477827,0.86479503,1927.1,1927.0,5.00422777]
[1688250478729,0.57807868,1927.1,1927.0,5.00422777]
[1688250489934,0.86479503,1927.1,1927.0,5.00422777]
[1688250490246,0.57807868,1927.1,1927.0,5.00422777]
[1688250494943,0.26670868,1927.1,1927.0,5.00422777]
[1688250495143,3.98623,1927.2,1927.0,5.00422777]
[1688250495446,3.98623,1927.2,1927.1,4.682]
[1688250495744,3.98623,1927.2,1927.1,4.99642525]
[1688250497646,0.77843,1927.2,1927.1,4.99642525]
[1688250503048,5.20400767,1927.3,1927.1,4.99642525]
[1688250503350,5.20400767,1927.3,1927.2,4.96735]
[1688250503651,5.20400767,1927.3,1927.2,4.97039624]
[1688250510153,5.46961042,1927.3,1927.2,4.97039624]
[1688250514666,5.75632677,1927.3,1927.2,4.97039624]
[1688250515567,5.46961042,1927.3,1927.2,4.97039624]
[1688250517357,8.67741042,1927.3,1927.2,4.97039624]
[1688250538191,8.96412677,1927.3,1927.2,4.65904624]
[1688250540487,8.96412677,1927.3,1927.2,4.97039624]
[1688250543588,8.96412677,1927.3,1927.2,4.65904624]
[1688250543794,8.96412677,1927.3,1927.2,4.97039624]
[1688250552210,8.96412677,1927.3,1927.2,4.95639624]
[1688250552900,13.64612677,1927.3,1927.2,0.00304624]
[1688250553103,0.56748412,1927.2,1927.1,0.40951449]
[1688250553300,0.56748412,1927.2,1927.0,0.00778351]
[1688250553503,3.80587635,1927.1,1927.0,0.00778351]
[1688250553803,4.07356179,1927.1,1927.0,0.00778351]
[1688250554210,9.01916179,1927.1,1927.0,0.00778351]
[1688250555309,9.01916179,1927.1,1927.0,0.31916351]
[1688250555811,9.01916179,1927.1,1927.0,0.32264645]
[1688250556013,9.01916179,1927.1,1927.0,0.74123133]
[1688250556311,9.01916179,1927.1,1927.0,0.32264645]
[1688250570111,4.07356179,1927.1,1927.0,0.32264645]
[1688250570311,3.78684544,1927.1,1927.0,0.32264645]
[1688250571621,4.07356179,1927.1,1927.0,0.32264645]
[1688250573212,3.78684544,1927.1,1927.0,4.96464645]
[1688250574919,0.57904544,1927.1,1927.0,4.96464645]
[1688250579120,0.57904544,1927.1,1927.0,5.06864645]
[1688250579822,0.67371469,1927.1,1927.0,5.06864645]
[1688250582914,0.67371469,1927.1,1927.0,4.96464645]
[1688250583419,0.36235469,1927.1,1927.0,5.06864645]
[1688250583615,0.31907767,1927.3,1927.0,17.52624203]
[1688250583816,0.42727954,1927.1,1927.0,5.27694645]
[1688250584022,0.31907767,1927.3,1927.0,13.12674645]
[1688250584218,0.31907767,1927.3,1927.2,4.96735]
[1688250584527,0.31907767,1927.3,1927.2,5.07135]
[1688250584730,0.31907767,1927.3,1927.2,5.07481164]
[1688250585226,0.6557775,1927.3,1927.2,5.07481164]
[1688250586619,0.6557775,1927.3,1927.2,4.97081164]
[1688250587223,0.3444475,1927.3,1927.2,4.97081164]
[1688250587624,0.3444475,1927.3,1927.2,8.17861164]
[1688250589122,0.6557775,1927.3,1927.2,8.17861164]
[1688250589325,0.3444475,1927.3,1927.2,8.17861164]
[1688250591228,0.6557775,1927.3,1927.2,8.17861164]
[1688250595333,0.6557775,1927.3,1927.2,8.59565188]
[1688250597233,0.3444475,1927.3,1927.2,8.59565188]
[1688250597830,0.3444475,1927.3,1927.2,10.18243549]
[1688250605630,11.11673,1927.7,1927.2,15.28643549]
[1688250605941,10.49407,1927.7,1927.6,4.656]
[1688250606139,10.49407,1927.7,1927.6,4.96728]
[1688250606337,10.67180499,1927.7,1927.6,4.96728]
[1688250606542,5.35903499,1927.7,1927.6,4.96728]
[1688250606747,0.17773499,1927.7,1927.6,4.96728]
[1688250609537,0.17773499,1927.7,1927.6,5.07128]
[1688250609745,0.17773499,1927.7,1927.6,8.27908]
[1688250609943,0.31126,1927.9,1927.7,4.682]
[1688250610149,0.31126,1927.9,1927.8,4.96725]
[1688250610439,0.59797635,1927.9,1927.8,4.96725]
[1688250613142,0.59797635,1927.9,1927.7,4.682]
[1688250613347,4.08653412,1927.8,1927.7,4.682]
[1688250613650,4.34019944,1927.8,1927.7,4.682]
[1688250614239,4.34019944,1927.8,1927.7,4.4509]
[1688250617143,4.34019944,1927.8,1927.7,4.76217]
[1688250617650,4.34019944,1927.8,1927.7,4.96727]
[1688250621857,4.34019944,1927.8,1927.7,4.97069571]
[1688250622155,4.34019944,1927.8,1927.7,0.31469571]
[1688250622849,9.02219944,1927.8,1927.7,0.00342571]
[1688250623055,14.30109944,1927.8,1927.4,4.682]
[1688250623245,3.5191,1927.5,1927.4,4.682]
[1688250623445,4.37330047,1927.5,1927.4,0.41304736]
[1688250623658,4.37330047,1927.5,1927.3,5.43432]
[1688250623959,4.37330047,1927.5,1927.4,0.00363213]
[1688250624161,9.43280047,1927.5,1927.4,0.00363213]
[1688250624648,9.43280047,1927.5,1927.3,5.84371318]
[1688250625756,9.43280047,1927.5,1927.4,0.00363213]
[1688250626664,9.43280047,1927.5,1927.3,4.656]
[1688250627659,9.43280047,1927.5,1927.1,5.09589934]
[1688250627660,4.64,1927.4,1927.1,5.09589934]
[1688250627866,4.64,1927.4,1927.1,5.40725934]
[1688250627867,3.2078,1927.2,1927.1,5.40725934]
[1688250628168,3.51915,1927.2,1927.1,5.54368561]
[1688250630769,3.51915,1927.2,1927.1,5.54735288]
[1688250632070,3.51915,1927.2,1927.1,5.52135288]
[1688250635774,3.51915,1927.2,1927.1,0.14009354]
[1688250638170,0.56748412,1927.1,1926.8,10.4448]
[1688250638378,7.8478,1926.9,1926.7,0.77847]
[1688250638581,0.31141,1926.8,1926.7,0.77847]
[1688250638871,1.16561047,1926.8,1926.7,0.77847]
[1688250639064,1.16561047,1926.8,1926.7,1.19223079]
[1688250639267,5.84761047,1926.8,1926.6,0.00778513]
[1688250639473,3.51923,1926.7,1926.6,0.00778513]
[1688250639670,3.51923,1926.7,1926.6,0.31922513]
[1688250642372,3.51923,1926.7,1926.6,0.00778513]
[1688250643267,8.18723,1926.7,1926.6,0.00778513]
[1688250645880,8.18723,1926.7,1926.6,0.18087074]
[1688250647978,8.18723,1926.7,1926.5,0.4083511]
[1688250648185,8.18723,1926.7,1926.1,5.68056]
[1688250648186,5.53620047,1926.6,1926.2,10.3656]
[1688250648380,4.682,1926.3,1926.2,10.6771]
[1688250648586,4.99349,1926.3,1926.2,5.4104]
[1688250648789,5.84769047,1926.3,1926.2,5.4104]
[1688250650976,5.84769047,1926.3,1926.1,0.42523039]
[1688250651182,3.2078,1926.2,1926.1,0.42523039]
[1688250651483,3.51931,1926.2,1926.1,0.42523039]
[1688250651685,3.51931,1926.2,1926.1,0.43086327]
[1688250652084,3.51931,1926.2,1926.1,0.74238327]
[1688250653681,3.51931,1926.2,1926.1,0.74519971]
[1688250654088,3.51931,1926.2,1926.1,0.32775647]
[1688250655588,3.51931,1926.2,1926.1,0.75447528]
[1688250655589,8.20131,1926.2,1926.1,0.75447528]
[1688250657691,8.20131,1926.2,1926.1,0.44295528]
[1688250665792,8.20131,1926.2,1926.1,0.44013884]
[1688250669090,4.682,1926.1,1925.3,4.642]
[1688250669296,8.2014,1925.6,1925.5,5.0552]
[1688250669495,9.05560047,1925.6,1925.5,5.0552]
[1688250669690,4.08688412,1925.6,1925.5,9.7112]
[1688250669901,4.37360047,1925.6,1925.5,10.02282]
[1688250670097,0.77902,1925.7,1925.5,10.12682]
[1688250670098,0.78680998,1925.7,1925.5,10.12682]
[1688250670400,0.3116,1925.6,1925.5,5.47082]
[1688250670593,0.3116,1925.6,1925.5,10.12682]
[1688250674700,0.59831635,1925.6,1925.5,5.0552]
[1688250676399,0.59831635,1925.6,1925.4,4.68978998]
[1688250676699,0.56748412,1925.5,1925.4,4.68978998]
[1688250676999,5.56110412,1925.5,1925.4,0.00778998]
[1688250677597,5.54710412,1925.5,1925.4,0.00778998]
[1688250677997,8.75490412,1925.5,1925.4,0.00778998]
[1688250680606,8.75490412,1925.5,1925.4,0.46451966]
[1688250682009,8.75490412,1925.5,1925.4,0.69276293]
[1688250682216,8.75490412,1925.5,1925.4,0.00778998]
[1688250682509,8.75490412,1925.5,1925.4,0.72537862]
[1688250682704,8.75490412,1925.5,1925.4,0.00778998]
[1688250682907,8.75490412,1925.5,1925.4,0.72537771]
[1688250692609,8.75490412,1925.5,1925.4,1.03700771]
[1688250692808,0.31162,1925.5,1925.4,5.67900771]
[1688250693014,0.77905,1925.6,1925.4,5.67900771]
[1688250693218,0.78679998,1925.7,1925.6,0.3116]
[1688250693612,0.78679998,1925.7,1925.6,0.73569754]
[1688250695712,5.71351633,1925.7,1925.6,0.42409754]
[1688250695922,5.71351633,1925.7,1925.5,0.31162]
[1688250696121,5.71351633,1925.7,1925.6,0.55449745]
[1688250696623,5.71351633,1925.7,1925.6,0.86609745]
[1688250707746,1.07351633,1925.7,1925.6,0.86609745]
[1688250712139,5.75551633,1925.7,1925.6,0.86609745]
[1688250715042,6.69051854,1925.7,1925.6,0.86609745]
[1688250719551,1.72180219,1925.7,1925.6,0.86609745]
[1688250720639,0.78679998,1925.7,1925.6,0.86609745]
[1688250722150,0.78679998,1925.7,1925.6,5.50809745]
[1688250722456,1.07351633,1925.7,1925.6,5.50809745]
[1688250724846,0.78679998,1925.7,1925.6,5.50809745]
[1688250727350,1.07351633,1925.7,1925.6,5.50809745]
[1688250728855,1.07351633,1925.7,1925.6,5.92607562]
[1688250732065,1.07351633,1925.7,1925.6,1.28407562]
[1688250732263,2.00851854,1925.7,1925.6,1.28407562]
[1688250736057,2.00851854,1925.7,1925.6,13.7506743]
[1688250736254,2.00851854,1925.7,1925.6,1.28407562]
[1688250736861,2.00851854,1925.7,1925.6,13.75070851]
[1688250741772,1.07351633,1925.7,1925.6,13.75070851]
[1688250742071,0.78679998,1925.7,1925.6,13.75070851]
[1688250744065,1.07351633,1925.7,1925.6,13.75070851]
[1688250754976,0.78679998,1925.7,1925.6,13.75070851]
[1688250756776,1.07351633,1925.7,1925.6,13.75070851]
[1688250758168,1.07351633,1925.7,1925.6,13.43910851]
[1688250758472,5.75551633,1925.7,1925.6,13.43910851]
[1688250758869,5.75551633,1925.7,1925.6,0.97247562]
[1688250760677,5.75551633,1925.7,1925.6,13.43941516]
[1688250761676,5.75551633,1925.7,1925.6,0.97247562]
[1688250762579,5.75551633,1925.7,1925.6,13.43938909]
[1688250762879,5.75551633,1925.7,1925.6,0.97247562]
[1688250765088,5.75551633,1925.7,1925.6,1.28407562]
[1688250766178,8.96331633,1925.7,1925.6,1.28407562]
[1688250766381,9.89831854,1925.7,1925.6,0.97247562]
[1688250767479,1.72180219,1925.7,1925.6,5.92607562]
[1688250767684,0.78679998,1925.7,1925.6,5.92607562]
[1688250767886,0.00778998,1925.7,1925.6,18.39280348]
[1688250770388,0.31937998,1925.7,1925.6,18.39280348]
[1688250770588,0.31937998,1925.7,1925.6,18.39294974]
[1688250770884,0.31937998,1925.7,1925.6,13.75094974]
[1688250772488,1.25438219,1925.7,1925.6,13.75094974]
[1688250777684,1.54109854,1925.7,1925.6,13.75094974]
[1688250777895,1.54109854,1925.7,1925.6,1.28407562]
[1688250778592,1.54109854,1925.7,1925.6,13.75092668]
[1688250779197,1.54109854,1925.7,1925.6,13.75092673]
[1688250779491,1.54109854,1925.7,1925.6,1.28407562]
[1688250779990,1.54109854,1925.7,1925.6,13.75092573]
[1688250780188,1.54109854,1925.7,1925.6,1.28407562]
[1688250780587,0.94279219,1925.7,1925.6,18.43291033]
[1688250780790,0.00778998,1925.7,1925.6,21.64071033]
[1688250781196,0.93500221,1926.0,1925.6,26.56494594]
[1688250781394,0.31154,1926.0,1925.9,4.96755]
[1688250781802,0.31154,1926.0,1925.9,5.35511605]
[1688250796010,0.59825635,1926.0,1925.9,5.04356605]
[1688250796207,0.59825635,1926.0,1925.9,0.38756605]
[1688250796407,6.21525856,1926.0,1925.6,5.72055]
[1688250796721,0.31157,1925.8,1925.7,0.38752371]
[1688250796906,0.59828635,1925.8,1925.7,0.38752371]
[1688250797105,1.53328856,1925.8,1925.7,0.38752371]
[1688250798613,1.53328856,1925.8,1925.7,0.69911371]
[1688250802314,1.53328856,1925.8,1925.7,5.38111371]
[1688250805219,1.24657221,1925.8,1925.7,5.38111371]
[1688250805918,0.31157,1925.8,1925.7,5.38111371]
[1688250811124,6.96083221,1925.9,1925.7,5.38111371]
[1688250811315,0.77893,1925.9,1925.8,4.95357]
[1688250811516,0.77893,1925.9,1925.8,5.34105174]
[1688250824637,0.77893,1925.9,1925.8,5.75784486]
[1688250831033,1.06564635,1925.9,1925.8,5.44627486]
[1688250831229,1.06564635,1925.9,1925.8,0.80427486]
[1688250831433,2.00064856,1925.9,1925.8,0.80427486]
[1688250832732,2.00064856,1925.9,1925.8,1.11584486]
[1688250851656,6.66864856,1925.9,1925.8,0.80427486]
[1688250852352,6.66864856,1925.9,1925.8,0.38748174]
[1688250852552,6.66864856,1925.9,1925.7,0.31159]
[1688250852865,6.83484856,1925.9,1925.8,0.69675819]
[1688250862362,6.54813221,1925.9,1925.8,0.69675819]
[1688250862968,6.83484856,1925.9,1925.8,0.69675819]
[1688250863658,6.83484856,1925.9,1925.8,1.11711983]
[1688250866372,6.83484856,1925.9,1925.8,0.69675819]
[1688250875380,11.51684856,1925.9,1925.8,0.38518819]
[1688250881589,14.72464856,1925.9,1925.8,0.38518819]
[1688250882886,11.51684856,1925.9,1925.8,0.38518819]
[1688250883188,14.72464856,1925.9,1925.8,0.38518819]
[1688250887989,11.51684856,1925.9,1925.8,0.38518819]
[1688250888290,14.72464856,1925.9,1925.8,0.38518819]
[1688250891282,15.14611929,1925.9,1925.8,0.38518819]
[1688250899196,11.93831929,1925.9,1925.8,0.38518819]
[1688250899395,15.14611929,1925.9,1925.8,0.38518819]
[1688250899996,0.56748412,1925.8,1925.6,4.7927]
[1688250900194,8.48810635,1925.7,1925.5,5.1717]
[1688250900396,4.668,1925.6,1925.5,5.1717]
[1688250900700,5.54708412,1925.6,1925.5,5.1717]
[1688250900898,6.48208633,1925.6,1925.5,5.1717]
[1688250901204,6.48208633,1925.6,1925.5,5.48332]
[1688250902093,6.48208633,1925.6,1925.5,5.1717]
[1688250904901,6.48208633,1925.6,1925.4,4.80048998]
[1688250904902,6.48208633,1925.6,1925.1,4.99366]
[1688250905104,7.8478,1925.4,1925.2,10.2338]
[1688250905305,0.87913412,1925.3,1925.2,10.54547]
[1688250905808,2.10085268,1925.3,1925.2,10.54547]
[1688250907895,2.10085268,1925.3,1925.2,11.3268638]
[1688250909698,6.78285268,1925.3,1925.2,0.7813938]
[1688250915208,6.78285268,1925.3,1925.1,0.0077912]
[1688250915409,7.8758,1925.2,1925.0,4.8117]
[1688250915614,5.84788047,1925.1,1925.0,4.8117]
[1688250915909,6.78288268,1925.1,1925.0,4.8117]
[1688250916309,6.78288268,1925.1,1924.9,0.73769882]
[1688250916510,4.64,1925.0,1924.9,5.49180201]
[1688250916816,4.9517,1925.0,1924.9,5.49180201]
[1688250917013,4.9517,1925.0,1924.9,5.18009201]
[1688250917212,8.1595,1925.0,1924.9,5.18009201]
[1688250917511,9.09450221,1925.0,1924.9,5.18009201]
[1688250918914,9.09450221,1925.0,1924.9,0.00779201]
[1688250919616,0.31173,1924.8,1924.6,10.3646]
[1688250919913,5.28046635,1924.7,1924.6,10.3646]
[1688250920115,5.84795047,1924.7,1924.6,10.67636]
[1688250921815,5.84795047,1924.7,1924.5,0.78723362]
[1688250922009,4.99376,1924.6,1924.5,6.03343362]
[1688250923113,4.99376,1924.6,1924.5,7.04401884]
[1688250923608,0.31176,1924.6,1924.5,7.04401884]
[1688250924219,0.77942,1924.7,1924.5,11.68601884]
[1688250924424,0.77942,1924.7,1924.6,4.682]
[1688250924615,0.77942,1924.7,1924.6,4.99376]
[1688250924821,0.77942,1924.7,1924.6,6.00434537]
[1688250926120,1.06613635,1924.7,1924.6,6.00434537]
[1688250927521,0.77942,1924.7,1924.6,6.00434537]
[1688250930927,1.06613635,1924.7,1924.6,6.00434537]
[1688250931611,0.77942,1924.7,1924.6,6.00434537]
[1688250932828,0.77942,1924.7,1924.6,6.01009188]
[1688250953345,1.7149501,1924.7,1924.6,6.01009188]
[1688250954345,0.77942,1924.7,1924.6,6.01009188]
[1688250955144,1.71494786,1924.7,1924.6,6.01009188]
[1688250955541,0.93552786,1924.7,1924.6,6.01009188]
[1688250955749,0.00779362,1924.8,1924.7,0.104]
[1688250955946,0.00779362,1924.8,1924.7,5.07175]
[1688250956148,0.00779362,1924.8,1924.7,10.99601697]
[1688250957053,0.00779362,1924.8,1924.7,11.00174314]
[1688250964160,0.00779362,1924.8,1924.7,10.89774314]
[1688250968760,0.31952362,1924.8,1924.7,10.89774314]
[1688250970359,0.00779362,1924.8,1924.7,10.89774314]
[1688250972465,0.00779362,1924.8,1924.7,11.31247997]
[1688250982669,0.31952362,1924.8,1924.7,6.18687997]
[1688250983565,0.60623997,1924.8,1924.7,6.18687997]
[1688250984273,0.29450997,1924.8,1924.7,6.18687997]
[1688250984471,0.00779362,1924.8,1924.7,6.18687997]
[1688250986173,0.31952362,1924.8,1924.7,6.18687997]
[1688250986771,8.49603997,1924.8,1924.7,1.21912997]
[1688250987066,8.49603997,1924.8,1924.7,0.80439314]
[1688250987067,9.43149103,1924.8,1924.7,0.80439314]
[1688250987267,9.43149103,1924.8,1924.7,0.59730526]
[1688250987470,9.43149103,1924.8,1924.5,0.00779362]
[1688250987675,7.8898,1924.6,1924.5,0.00779362]
[1688250987877,8.48827635,1924.6,1924.5,0.00779362]
[1688250988374,9.42372741,1924.6,1924.5,0.00779362]
[1688250988574,14.56992741,1924.6,1924.5,0.00779362]
[1688250990174,14.56992741,1924.6,1924.5,0.31957362]
[1688250990373,14.56992741,1924.6,1924.5,0.00779362]
[1688250990779,14.56992741,1924.6,1924.5,0.31957362]
[1688250991171,14.56992741,1924.6,1924.5,0.00779362]
[1688250991583,14.56992741,1924.6,1924.5,0.31957362]
[1688250993181,14.56992741,1924.6,1924.5,0.00779362]
[1688250993781,14.56992741,1924.6,1924.5,0.31957362]
[1688250994676,14.56992741,1924.6,1924.5,0.00779362]
[1688250994872,14.56992741,1924.6,1924.5,0.69016805]
[1688250995075,14.56992741,1924.6,1924.5,0.69549296]
[1688250995380,14.56992741,1924.6,1924.5,1.00727296]
[1688251002983,11.36212741,1924.6,1924.5,1.00727296]
[1688251006885,14.56992741,1924.6,1924.5,1.00727296]
[1688251021405,14.28321106,1924.6,1924.5,1.00727296]
[1688251021810,14.56992741,1924.6,1924.5,1.00727296]
[1688251022210,9.88792741,1924.6,1924.5,1.00727296]
[1688251026013,6.68012741,1924.6,1924.5,1.00727296]
[1688251026208,6.39341106,1924.6,1924.5,1.00727296]
[1688251026517,6.68012741,1924.6,1924.5,1.00727296]
[1688251027513,6.39341106,1924.6,1924.5,1.00727296]
[1688251028214,14.56992741,1924.6,1924.5,0.69549296]
[1688251028414,14.56992741,1924.6,1924.2,0.93543]
[1688251028608,4.99381,1924.3,1924.2,0.93543]
[1688251029005,5.28052635,1924.3,1924.2,0.94057775]
[1688251029413,5.84801047,1924.3,1924.2,0.94057775]
[1688251029714,6.78346153,1924.3,1924.2,0.94057775]
[1688251030106,6.49674518,1924.3,1924.2,0.94057775]
[1688251030316,5.92926106,1924.3,1924.2,0.94057775]
[1688251030720,0.31181,1924.3,1924.2,5.62257775]
[1688251034320,5.28052635,1924.3,1924.2,0.00514775]
[1688251034523,6.21597741,1924.3,1924.2,0.31697775]
[1688251034824,11.02907741,1924.3,1924.2,0.31697775]
[1688251037218,11.02907741,1924.3,1924.2,0.00514775]
[1688251037419,5.0,1924.0,1923.2,0.31198]
[1688251037623,4.97997,1923.3,1923.2,0.31198]
[1688251037819,5.26668635,1923.3,1923.2,0.31198]
[1688251038023,0.77994,1923.4,1923.2,4.99816857]
[1688251038224,1.06665635,1923.4,1923.2,4.99816857]
[1688251038415,1.06665635,1923.4,1923.2,9.86176857]
[1688251038617,0.77994,1923.4,1923.2,9.86176857]
[1688251038824,0.77994,1923.4,1923.2,9.82176857]
[1688251039027,0.77994,1923.4,1923.2,10.22951018]
[1688251039227,0.77994,1923.4,1923.2,13.43731018]
[1688251040725,0.77994,1923.4,1923.3,1.41548189]
[1688251040929,0.77994,1923.4,1923.3,1.73151118]
[1688251042228,0.77994,1923.4,1923.3,6.41351118]
[1688251042528,0.3197591,1923.5,1923.3,6.41351118]
[1688251043821,0.60647545,1923.5,1923.3,6.41351118]
[1688251044828,0.3197591,1923.5,1923.3,6.41351118]
[1688251048331,0.3197591,1923.5,1923.4,3.2078]
[1688251048525,0.3197591,1923.5,1923.4,3.51976]
[1688251048830,0.3197591,1923.5,1923.4,4.73850911]
[1688251049034,0.3197591,1923.5,1923.4,4.74255918]
[1688251051531,0.60647545,1923.5,1923.4,4.74255918]
[1688251051730,5.28847545,1923.5,1923.4,1.22279918]
[1688251051925,5.28847545,1923.5,1923.4,1.53475918]
[1688251052627,5.28847545,1923.5,1923.4,1.22279918]
[1688251053137,8.49627545,1923.5,1923.4,1.22279918]
[1688251055134,8.49627545,1923.5,1923.4,1.53475918]
[1688251059335,5.0017591,1923.5,1923.4,1.53475918]
[1688251059833,5.28847545,1923.5,1923.4,1.53475918]
[1688251061128,5.28847545,1923.5,1923.4,1.22279918]
[1688251061129,4.97651545,1923.5,1923.4,1.22279918]
[1688251070231,8.18431545,1923.5,1922.5,3.2078]
[1688251070432,4.682,1922.9,1922.6,9.455]
[1688251070738,4.682,1922.9,1922.6,15.23623446]
[1688251071039,4.668,1923.1,1922.8,4.642]
[1688251071249,5.23548412,1923.1,1922.8,4.642]
[1688251071438,5.23548412,1923.1,1922.9,0.9193857]
[1688251071745,5.23548412,1923.1,1922.8,4.642]
[1688251071942,5.23548412,1923.1,1923.0,0.9193871]
[1688251072144,0.56748412,1923.1,1923.0,0.00378052]
[1688251072347,0.56748412,1923.1,1923.0,0.92316905]
[1688251073943,7.8758,1923.2,1923.0,0.92316905]
[1688251074142,8.73000047,1923.2,1923.0,0.92316905]
[1688251075647,8.44328412,1923.2,1923.0,0.92316905]
[1688251076237,0.28671635,1923.1,1923.0,0.92316905]
[1688251076441,8.44328412,1923.2,1923.0,0.92316905]
[1688251077444,8.73000047,1923.2,1923.0,0.92316905]
[1688251081144,4.668,1923.2,1923.0,0.92316905]
[1688251082255,0.28671635,1923.1,1923.0,5.60516905]
[1688251082557,15.51538412,1923.3,1923.0,5.60516905]
[1688251082751,0.28671635,1923.2,1923.0,5.60516905]
[1688251091165,0.78009,1923.1,1923.0,5.91717905]
[1688251092157,5.46209,1923.1,1923.0,1.23517905]
[1688251093559,0.78009,1923.1,1923.0,5.87717905]
[1688251095672,1.06680635,1923.1,1923.0,1.23517905]
[1688251101375,1.06680635,1923.1,1923.0,4.44297905]
[1688251105784,0.78009,1923.1,1923.0,4.44297905]
[1688251112099,0.78009,1923.1,1923.0,9.12497905]
[1688251113988,8.95660635,1923.1,1922.8,0.72979154]
[1688251114292,4.99403,1922.9,1922.8,0.31205]
[1688251114495,0.31203,1922.9,1922.8,3.51985]
[1688251114800,1.24828517,1922.9,1922.8,4.1458662]
[1688251114996,1.24828517,1922.9,1922.8,9.19867754]
[1688251115290,5.93028517,1922.9,1922.8,5.67882754]
[1688251115597,1.24828517,1922.9,1922.8,10.64687754]
[1688251115786,0.31203,1922.9,1922.8,10.64687754]
[1688251116994,0.78009,1923.0,1922.8,10.64687754]
[1688251117190,0.78009,1923.0,1922.9,7.8638]
[1688251117499,0.78009,1923.0,1922.9,8.67095247]
[1688251118188,0.78009,1923.0,1922.9,8.67445652]
[1688251122303,1.06680635,1923.0,1922.9,8.67445652]
[1688251123603,1.06680635,1923.0,1922.9,4.01845652]
[1688251123805,2.00306152,1923.0,1922.9,4.01845652]
[1688251124103,1.71634517,1923.0,1922.9,4.01845652]
[1688251129409,2.00306152,1923.0,1922.9,4.01845652]
[1688251130809,1.71634517,1923.0,1922.9,4.01845652]
[1688251131600,2.00306152,1923.0,1922.9,4.01845652]
[1688251131907,1.71634517,1923.0,1922.9,4.01845652]
[1688251132908,5.46194,1923.3,1922.9,8.80445652]
[1688251133107,5.46194,1923.3,1923.2,3.51978]
[1688251133299,6.39812434,1923.3,1923.2,3.51978]
[1688251133502,6.68484069,1923.3,1923.2,3.98421459]
[1688251133908,6.68484069,1923.3,1923.2,0.77641459]
[1688251134204,6.68484069,1923.3,1923.2,0.46790728]
[1688251135611,6.68484069,1923.3,1923.2,0.77988728]
[1688251135812,6.68484069,1923.3,1923.2,3.98768728]
[1688251136310,6.39812434,1923.3,1923.2,3.98768728]
[1688251136506,1.71612434,1923.3,1923.2,3.98768728]
[1688251141310,2.00284069,1923.3,1923.2,3.98768728]
[1688251142114,6.67084069,1923.3,1923.2,3.98768728]
[1688251146816,6.67084069,1923.3,1923.2,0.46790728]
[1688251147002,6.68484069,1923.3,1923.2,0.46790728]
[1688251150113,6.68484069,1923.3,1923.2,0.77988728]
[1688251151713,6.39812434,1923.3,1923.2,0.77988728]
[1688251156121,6.68484069,1923.3,1923.2,0.77988728]
[1688251164940,6.39812434,1923.3,1923.2,0.77988728]
[1688251172047,1.71612434,1923.3,1923.2,0.77988728]
[1688251189767,6.67084069,1923.3,1923.2,0.46790728]
[1688251191663,6.67084069,1923.3,1923.2,0.77988728]
[1688251194661,6.67084069,1923.3,1923.2,3.98768728]
[1688251194662,1.71612434,1923.3,1923.2,3.98768728]
[1688251195168,1.71612434,1923.3,1923.2,9.13508728]
[1688251195370,0.77994,1923.3,1923.2,9.13508728]
[1688251195765,1.71612434,1923.3,1923.2,9.13508728]
[1688251201563,1.71612434,1923.3,1923.2,3.98768728]
[1688251201770,2.00284069,1923.3,1923.2,0.77988728]
[1688251203070,1.71612434,1923.3,1923.2,0.77988728]
[1688251203273,2.00284069,1923.3,1923.2,0.77988728]
[1688251205977,2.00284069,1923.3,1923.2,1.02615753]